{"text_format":"1","workbook":"xlsx","n_sheets":4,"sheets":["PRADŽIA","NAUDOJIMO INSTRUKCIJA","SKAIČIUOKLĖ","ATNAUJINIMAS"],"not_rendered":{"charts":2,"images":14,"macros":1,"external_links":0,"defined_names":0,"comments":0,"pivot_tables":0},"unopened":[],"bounds":{"document_bytes":16777216,"sheet_cells":100000,"rows_first":2000,"rows_last":500,"rows_between":2000,"halvings":0,"cell_chars":16384,"cell_head_chars":4096},"cells_cut":0,"cells_raw":0,"read":"whole","date_system":"1900"}

{"sheet":"PRADŽIA","index":0,"n_rows":0,"n_cols":0,"rows_kept":0,"cut":false,"hidden":false,"merged":[[0,17,4,21]]}

{"sheet":"NAUDOJIMO INSTRUKCIJA","index":1,"n_rows":0,"n_cols":0,"rows_kept":0,"cut":false,"hidden":false,"merged":[]}

{"sheet":"SKAIČIUOKLĖ","index":2,"n_rows":80,"n_cols":40,"rows_kept":80,"cut":false,"hidden":false,"merged":[[3,5,3,14],[19,7,19,14],[2,5,2,14],[17,6,19,6]]}
[]
[null,null,null,null,null,null,null,null,null,null,null,null,null,null,null,null,null,null,null,null,null,null,null,null,"Duomenys \"helper\" stulpeliams",null,"Helper stulpeliai",null,null,null,null,null,null,null,null,"Duomenys \"helper\" stulpeliams",null,"Helper stulpeliai"]
[null,null,null,null,null,"KURO RŪŠIES REGULIAVIMO POVEIKIO VERTINIMO SKAIČIUOKLĖ",null,null,null,null,null,null,null,null,null,null,null,null,null,null,null,"Dropdown'o pasirinkimai",null,"Kuro rūšis","ŠESD emisija",null,null,null,null,null,null,null,"Dropdown'o pasirinkimai",null,"Kuro rūšis","ŠESD emisija"]
[null,null,null,null,null,null,null,null,null,null,null,null,null,null,null,null,null,null,null,null,null,"Gamtinės dujos",null,"Gamtinės dujos",null,null,null,null,null,null,null,null,"Gamtinės dujos",null,"Gamtinės dujos"]
[null,null,null,null,null,"Metai","Numatyta reikšmė",2023,2024,2025,2026,2027,2028,2029,2030,null,null,null,null,null,null,"Akmens anglis",null,"Akmens anglis",null,null,null,null,null,null,null,null,"Akmens anglis",null,"Akmens anglis"]
[null,null,null,null,null,null,null,null,null,null,null,null,null,null,null,null,null,null,null,null,null,"Elektra",null,"Elektra",null,null,null,null,null,null,null,null,"Elektra",null,"Elektra"]
[null,null,null,null,null,"Kuro rūšies sunaudojimo pokytis (TJ)","Įveskite",null,null,null,null,null,null,null,null,null,null,null,null,null,null,"Biodujos",null,"Biodujos",null,null,null,null,null,null,null,null,"Biodujos",null,"Biodujos"]
[null,null,null,null,null,null,null,null,null,null,null,null,null,null,null,null,null,null,null,null,null,"Suskystintos naftos dujos",null,"Suskystintos naftos dujos",null,null,null,null,null,null,null,null,"Suskystintos naftos dujos",null,"Suskystintos naftos dujos"]
[null,null,null,null,null,"Bazinė kuro rūšis","Pasirinkite iš sąrašo","Akmens anglis","Gamtinės dujos","Gamtinės dujos","Gamtinės dujos","Gamtinės dujos","Gamtinės dujos","Gamtinės dujos","Gamtinės dujos",null,null,null,null,null,null,"Vandenilis",null,"Vandenilis",null,null,null,null,null,null,null,null,"Vandenilis",null,"Vandenilis"]
[null,null,null,null,null,null,null,null,null,null,null,null,null,null,null,null,null,null,null,null,null,"Panaudotos, netinkamos naudoti padangos",null,"Panaudotos, netinkamos naudoti padangos",null,null,null,null,null,null,null,null,"Panaudotos, netinkamos naudoti padangos",null,"Panaudotos, netinkamos naudoti padangos"]
[null,null,null,null,null,"Bazinės kuro rūšies ŠESD emisijos faktorius (t/TJ)","Numatyta reikšmė",null,null,{"$f":"IFERROR(INDEX(Y24:Y30,AC24,COLUMNS(J11:J11)),\"\")","v":55.59},{"$f":"IFERROR(INDEX(Y34:Y40,AC34,COLUMNS(K11:K11)),\"\")","v":55.59},{"$f":"IFERROR(INDEX(Y44:Y50,AC44,COLUMNS(L11:L11)),\"\")","v":55.59},{"$f":"IFERROR(INDEX(Y54:Y60,AC54,COLUMNS(M11:M11)),\"\")","v":55.59},{"$f":"IFERROR(INDEX(Y64:Y70,AC64,COLUMNS(N11:N11)),\"\")","v":55.59},{"$f":"IFERROR(INDEX(Y74:Y80,AC74,COLUMNS(O11:O11)),\"\")","v":55.59}]
[null,null,null,null,null,null,null,null,null,null,null,null,null,null,null,null,null,null,null,null,null,null,null,"Duomenys \"helper\" stulpeliams",null,null,null,null,null,null,null,null,null,null,"Duomenys \"helper\" stulpeliams"]
[null,null,null,null,null,"Projektinė kuro rūšis","Pasirinkite iš sąrašo","Elektra","Elektra","Elektra","Elektra","Elektra","Elektra","Elektra","Elektra",null,null,null,null,null,null,null,null,"Kurorūšis",null,null,null,null,null,null,null,null,null,null,"Kurorūšis"]
[null,null,null,null,null,null,null,null,null,null,null,null,null,null,null,null,null,null,null,null,null,"Gamtinės dujos",null,"Gamtinės dujos",null,null,null,null,null,null,null,null,"Gamtinės dujos",null,"Gamtinės dujos"]
[null,null,null,null,null,"Projektinės kuro rušies ŠESD emisijos faktorius (t/TJ)","Numatyta reikšmė",null,null,{"$f":"IFERROR(INDEX(AJ24:AJ30,AN24,COLUMNS(J15:J15)),\"\")","v":0},{"$f":"IFERROR(INDEX(AJ34:AJ40,AN34,COLUMNS(K15:K15)),\"\")","v":0},{"$f":"IFERROR(INDEX(AJ44:AJ50,AN44,COLUMNS(L15:L15)),\"\")","v":0},{"$f":"IFERROR(INDEX(AJ54:AJ60,AN54,COLUMNS(M15:M15)),\"\")","v":0},{"$f":"IFERROR(INDEX(AJ64:AJ70,AN64,COLUMNS(N15:N15)),\"\")","v":0},{"$f":"IFERROR(INDEX(AJ74:AJ80,AN74,COLUMNS(O15:O15)),\"\")","v":0},null,null,null,null,null,null,"Akmens anglis",null,"Akmens anglis",null,null,null,null,null,null,null,null,"Akmens anglis",null,"Akmens anglis"]
[null,null,null,null,null,null,null,null,null,null,null,null,null,null,null,null,null,null,null,null,null,"Elektra",null,"Elektra",null,null,null,null,null,null,null,null,"Elektra",null,"Elektra"]
[null,null,null,null,null,null,null,null,null,null,null,null,null,null,null,null,null,null,null,null,null,"Biodujos",null,"Biodujos",null,null,null,null,null,null,null,null,"Biodujos",null,"Biodujos"]
[null,null,null,null,null,"ŠESD kiekio pokytis (kt CO2 ekv.)","Rezultatai",null,null,{"$f":"J7*(J11-J15)/1000","v":0},{"$f":"K7*(K11-K15)/1000","v":0},0,0,0,0,null,null,null,null,null,null,"Suskystintos naftos dujos",null,"Suskystintos naftos dujos",null,null,null,null,null,null,null,null,"Suskystintos naftos dujos",null,"Suskystintos naftos dujos"]
[null,null,null,null,null,"Kaupiamasis ŠESD kiekio pokytis (kt CO2 ekv.) ",null,null,null,{"$f":"IFERROR(J18, 0)","v":0},{"$f":"IFERROR(J19+K18, 0)","v":0},0,0,0,0,null,null,null,null,null,null,"Vandenilis",null,"Vandenilis",null,null,null,null,null,null,null,null,"Vandenilis",null,"Vandenilis"]
[null,null,null,null,null,"Suminis ŠESD kiekio pokytis (kt CO2 ekv.)",null,{"$f":"SUM(J18:O18)","v":0},null,null,null,null,null,null,null,null,null,null,null,null,null,"Panaudotos, netinkamos naudoti padangos",null,"Panaudotos, netinkamos naudoti padangos",null,null,null,null,null,null,null,null,"Panaudotos, netinkamos naudoti padangos",null,"Panaudotos, netinkamos naudoti padangos"]
[]
[null,null,null,null,null,null,null,null,null,null,null,null,null,null,null,null,null,null,null,null,null,null,null,"Duomenys \"helper\" stulpeliams",null,"Helper stulpeliai",null,null,null,null,null,null,null,null,"Duomenys \"helper\" stulpeliams",null,"Helper stulpeliai"]
[null,null,null,null,null,null,null,null,null,null,null,null,null,null,null,null,null,null,null,null,null,"Dropdown'o pasirinkimai",null,"Kurorūšis","ŠESD emisija",null,"H1","H2","H3",null,null,null,"Dropdown'o pasirinkimai",null,"Kurorūšis","ŠESD emisija",null,"H1","H2","H3"]
[null,null,null,null,null,null,null,null,null,null,null,null,null,null,null,null,null,null,null,null,null,"Gamtinės dujos",null,"Gamtinės dujos",55.59,null,1,{"$f":"IF(X24=$J$9,AA24,\"\")","v":1},{"$f":"IFERROR(SMALL(AB$24:AB$30,AA24),\"\")","v":1},null,null,null,"Gamtinės dujos",null,"Gamtinės dujos",55.59,null,1,{"$f":"IF(AI24=$J$13,AL24,\"\")","v":""},{"$f":"IFERROR(SMALL(AM$24:AM$30,AL24),\"\")","v":3}]
[null,null,null,null,null,null,null,null,null,null,null,null,null,null,null,null,null,null,null,null,null,"Akmens anglis",null,"Akmens anglis",96.1,null,2,{"$f":"IF(X25=$J$9,AA25,\"\")","v":""},{"$f":"IFERROR(SMALL(AB$24:AB$30,AA25),\"\")","v":""},null,null,null,"Akmens anglis",null,"Akmens anglis",96.1,null,2,{"$f":"IF(AI25=$J$13,AL25,\"\")","v":""},{"$f":"IFERROR(SMALL(AM$24:AM$30,AL25),\"\")","v":""}]
[null,null,null,null,null,null,null,null,null,null,null,null,null,null,null,null,null,null,null,null,null,"Elektra",null,"Elektra",0,null,3,"","",null,null,null,"Elektra",null,"Elektra",0,null,3,3,""]
[null,null,null,null,null,null,null,null,null,null,null,null,null,null,null,null,null,null,null,null,null,"Biodujos",null,"Biodujos",0,null,4,{"$f":"IF(X27=$J$9,AA27,\"\")","v":""},"",null,null,null,"Biodujos",null,"Biodujos",0,null,4,{"$f":"IF(AI27=$J$13,AL27,\"\")","v":""},""]
[null,null,null,null,null,null,null,null,null,null,null,null,null,null,null,null,null,null,null,null,null,"Suskystintos naftos dujos",null,"Suskystintos naftos dujos",66.78,null,5,"","",null,null,null,"Suskystintos naftos dujos",null,"Suskystintos naftos dujos",66.78,null,5,"",""]
[null,null,null,null,null,null,null,null,null,null,null,null,null,null,null,null,null,null,null,null,null,"Vandenilis",null,"Vandenilis",0,null,6,"","",null,null,null,"Vandenilis",null,"Vandenilis",0,null,6,"",""]
[null,null,null,null,null,null,null,null,null,null,null,null,null,null,null,null,null,null,null,null,null,"Panaudotos, netinkamos naudoti padangos",null,"Panaudotos, netinkamos naudoti padangos",66.400000000000006,null,7,"","",null,null,null,"Panaudotos, netinkamos naudoti padangos",null,"Panaudotos, netinkamos naudoti padangos",66.400000000000006,null,7,"",""]
[]
[null,null,null,null,null,null,null,null,null,null,null,null,null,null,null,null,null,null,null,null,null,null,null,"Duomenys \"helper\" stulpeliams",null,"Helper stulpeliai",null,null,null,null,null,null,null,null,"Duomenys \"helper\" stulpeliams",null,"Helper stulpeliai"]
[null,null,null,null,null,null,null,null,null,null,null,null,null,null,null,null,null,null,null,null,null,null,null,"Kuro rūšis","ŠESD emisija",null,"H1","H2","H3",null,null,null,null,null,"Kuro rūšis","ŠESD emisija",null,"H1","H2","H3"]
[null,null,null,null,null,null,null,null,null,null,null,null,null,null,null,null,null,null,null,null,null,"Gamtinės dujos",null,"Gamtinės dujos",55.59,null,1,{"$f":"IF(X34=$K$9,AA34,\"\")","v":1},{"$f":"IFERROR(SMALL(AB$34:AB$40,AA34),\"\")","v":1},null,null,null,"Gamtinės dujos",null,"Gamtinės dujos",55.59,null,1,{"$f":"IF(AI34=$K$13,AL34,\"\")","v":""},{"$f":"IFERROR(SMALL(AM$34:AM$40,AL34),\"\")","v":3}]
[null,null,null,null,null,null,null,null,null,null,null,null,null,null,null,null,null,null,null,null,null,"Akmens anglis",null,"Akmens anglis",96.1,null,2,{"$f":"IF(X35=$K$9,AA35,\"\")","v":""},{"$f":"IFERROR(SMALL(AB$34:AB$40,AA35),\"\")","v":""},null,null,null,"Akmens anglis",null,"Akmens anglis",96.1,null,2,{"$f":"IF(AI35=$K$13,AL35,\"\")","v":""},{"$f":"IFERROR(SMALL(AM$34:AM$40,AL35),\"\")","v":""}]
[null,null,null,null,null,null,null,null,null,null,null,null,null,null,null,null,null,null,null,null,null,"Elektra",null,"Elektra",0,null,3,"","",null,null,null,"Elektra",null,"Elektra",0,null,3,3,""]
[null,null,null,null,null,null,null,null,null,null,null,null,null,null,null,null,null,null,null,null,null,"Biodujos",null,"Biodujos",0,null,4,"","",null,null,null,"Biodujos",null,"Biodujos",0,null,4,"",""]
[null,null,null,null,null,null,null,null,null,null,null,null,null,null,null,null,null,null,null,null,null,"Suskystintos naftos dujos",null,"Suskystintos naftos dujos",66.78,null,5,"","",null,null,null,"Suskystintos naftos dujos",null,"Suskystintos naftos dujos",66.78,null,5,"",""]
[null,null,null,null,null,null,null,null,null,null,null,null,null,null,null,null,null,null,null,null,null,"Vandenilis",null,"Vandenilis",0,null,6,"","",null,null,null,"Vandenilis",null,"Vandenilis",0,null,6,"",""]
[null,null,null,null,null,null,null,null,null,null,null,null,null,null,null,null,null,null,null,null,null,"Panaudotos, netinkamos naudoti padangos",null,"Panaudotos, netinkamos naudoti padangos",66.400000000000006,null,7,"","",null,null,null,"Panaudotos, netinkamos naudoti padangos",null,"Panaudotos, netinkamos naudoti padangos",66.400000000000006,null,7,"",""]
[]
[null,null,null,null,null,null,null,null,null,null,null,null,null,null,null,null,null,null,null,null,null,null,null,"Duomenys \"helper\" stulpeliams",null,"Helper stulpeliai",null,null,null,null,null,null,null,null,"Duomenys \"helper\" stulpeliams",null,"Helper stulpeliai"]
[null,null,null,null,null,null,null,null,null,null,null,null,null,null,null,null,null,null,null,null,null,"Dropdown'o pasirinkimai",null,"Kuro rūšis","ŠESD emisija",null,"H1","H2","H3",null,null,null,"Dropdown'o pasirinkimai",null,"Kuro rūšis","ŠESD emisija",null,"H1","H2","H3"]
[null,null,null,null,null,null,null,null,null,null,null,null,null,null,null,null,null,null,null,null,null,"Gamtinės dujos",null,"Gamtinės dujos",55.59,null,1,{"$f":"IF(X44=$L$9,AA44,\"\")","v":1},{"$f":"IFERROR(SMALL(AB$44:AB$50,AA44),\"\")","v":1},null,null,null,"Gamtinės dujos",null,"Gamtinės dujos",55.59,null,1,{"$f":"IF(AI44=$L$13,AL44,\"\")","v":""},{"$f":"IFERROR(SMALL(AM$44:AM$50,AL44),\"\")","v":3}]
[null,null,null,null,null,null,null,null,null,null,null,null,null,null,null,null,null,null,null,null,null,"Akmens anglis",null,"Akmens anglis",96.1,null,2,{"$f":"IF(X45=$L$9,AA45,\"\")","v":""},{"$f":"IFERROR(SMALL(AB$44:AB$50,AA45),\"\")","v":""},null,null,null,"Akmens anglis",null,"Akmens anglis",96.1,null,2,{"$f":"IF(AI45=$L$13,AL45,\"\")","v":""},{"$f":"IFERROR(SMALL(AM$44:AM$50,AL45),\"\")","v":""}]
[null,null,null,null,null,null,null,null,null,null,null,null,null,null,null,null,null,null,null,null,null,"Elektra",null,"Elektra",0,null,3,"","",null,null,null,"Elektra",null,"Elektra",0,null,3,3,""]
[null,null,null,null,null,null,null,null,null,null,null,null,null,null,null,null,null,null,null,null,null,"Biodujos",null,"Biodujos",0,null,4,"","",null,null,null,"Biodujos",null,"Biodujos",0,null,4,"",""]
[null,null,null,null,null,null,null,null,null,null,null,null,null,null,null,null,null,null,null,null,null,"Suskystintos naftos dujos",null,"Suskystintos naftos dujos",66.78,null,5,"","",null,null,null,"Suskystintos naftos dujos",null,"Suskystintos naftos dujos",66.78,null,5,"",""]
[null,null,null,null,null,null,null,null,null,null,null,null,null,null,null,null,null,null,null,null,null,"Vandenilis",null,"Vandenilis",0,null,6,"","",null,null,null,"Vandenilis",null,"Vandenilis",0,null,6,"",""]
[null,null,null,null,null,null,null,null,null,null,null,null,null,null,null,null,null,null,null,null,null,"Panaudotos, netinkamos naudoti padangos",null,"Panaudotos, netinkamos naudoti padangos",66.400000000000006,null,7,"","",null,null,null,"Panaudotos, netinkamos naudoti padangos",null,"Panaudotos, netinkamos naudoti padangos",66.400000000000006,null,7,"",""]
[]
[null,null,null,null,null,null,null,null,null,null,null,null,null,null,null,null,null,null,null,null,null,null,null,"Duomenys \"helper\" stulpeliams",null,"Helper stulpeliai",null,null,null,null,null,null,null,null,"Duomenys \"helper\" stulpeliams",null,"Helper stulpeliai"]
[null,null,null,null,null,null,null,null,null,null,null,null,null,null,null,null,null,null,null,null,null,null,null,"Kuro rūšis","ŠESD emisija",null,"H1","H2","H3",null,null,null,null,null,"Kuro rūšis","ŠESD emisija",null,"H1","H2","H3"]
[null,null,null,null,null,null,null,null,null,null,null,null,null,null,null,null,null,null,null,null,null,"Gamtinės dujos",null,"Gamtinės dujos",55.59,null,1,{"$f":"IF(X54=$M$9,AA54,\"\")","v":1},{"$f":"IFERROR(SMALL(AB$54:AB$60,AA54),\"\")","v":1},null,null,null,"Gamtinės dujos",null,"Gamtinės dujos",55.59,null,1,{"$f":"IF(AI54=$M$13,AL54,\"\")","v":""},{"$f":"IFERROR(SMALL(AM$54:AM$60,AL54),\"\")","v":3}]
[null,null,null,null,null,null,null,null,null,null,null,null,null,null,null,null,null,null,null,null,null,"Akmens anglis",null,"Akmens anglis",96.1,null,2,{"$f":"IF(X55=$M$9,AA55,\"\")","v":""},{"$f":"IFERROR(SMALL(AB$54:AB$60,AA55),\"\")","v":""},null,null,null,"Akmens anglis",null,"Akmens anglis",96.1,null,2,{"$f":"IF(AI55=$M$13,AL55,\"\")","v":""},{"$f":"IFERROR(SMALL(AM$54:AM$60,AL55),\"\")","v":""}]
[null,null,null,null,null,null,null,null,null,null,null,null,null,null,null,null,null,null,null,null,null,"Elektra",null,"Elektra",0,null,3,"","",null,null,null,"Elektra",null,"Elektra",0,null,3,3,""]
[null,null,null,null,null,null,null,null,null,null,null,null,null,null,null,null,null,null,null,null,null,"Biodujos",null,"Biodujos",0,null,4,"","",null,null,null,"Biodujos",null,"Biodujos",0,null,4,"",""]
[null,null,null,null,null,null,null,null,null,null,null,null,null,null,null,null,null,null,null,null,null,"Suskystintos naftos dujos",null,"Suskystintos naftos dujos",66.78,null,5,"","",null,null,null,"Suskystintos naftos dujos",null,"Suskystintos naftos dujos",66.78,null,5,"",""]
[null,null,null,null,null,null,null,null,null,null,null,null,null,null,null,null,null,null,null,null,null,"Vandenilis",null,"Vandenilis",0,null,6,"","",null,null,null,"Vandenilis",null,"Vandenilis",0,null,6,"",""]
[null,null,null,null,null,null,null,null,null,null,null,null,null,null,null,null,null,null,null,null,null,"Panaudotos, netinkamos naudoti padangos",null,"Panaudotos, netinkamos naudoti padangos",66.400000000000006,null,7,"","",null,null,null,"Panaudotos, netinkamos naudoti padangos",null,"Panaudotos, netinkamos naudoti padangos",66.400000000000006,null,7,"",""]
[]
[null,null,null,null,null,null,null,null,null,null,null,null,null,null,null,null,null,null,null,null,null,null,null,"Duomenys \"helper\" stulpeliams",null,"Helper stulpeliai",null,null,null,null,null,null,null,null,"Duomenys \"helper\" stulpeliams",null,"Helper stulpeliai"]
[null,null,null,null,null,null,null,null,null,null,null,null,null,null,null,null,null,null,null,null,null,"Dropdown'o pasirinkimai",null,"Kuro rūšis","ŠESD emisija",null,"H1","H2","H3",null,null,null,"Dropdown'o pasirinkimai",null,"Kuro rūšis","ŠESD emisija",null,"H1","H2","H3"]
[null,null,null,null,null,null,null,null,null,null,null,null,null,null,null,null,null,null,null,null,null,"Gamtinės dujos",null,"Gamtinės dujos",55.59,null,1,{"$f":"IF(X64=$N$9,AA64,\"\")","v":1},{"$f":"IFERROR(SMALL(AB$64:AB$70,AA64),\"\")","v":1},null,null,null,"Gamtinės dujos",null,"Gamtinės dujos",55.59,null,1,{"$f":"IF(AI64=$N$13,AL64,\"\")","v":""},{"$f":"IFERROR(SMALL(AM$64:AM$70,AL64),\"\")","v":3}]
[null,null,null,null,null,null,null,null,null,null,null,null,null,null,null,null,null,null,null,null,null,"Akmens anglis",null,"Akmens anglis",96.1,null,2,{"$f":"IF(X65=$N$9,AA65,\"\")","v":""},{"$f":"IFERROR(SMALL(AB$64:AB$70,AA65),\"\")","v":""},null,null,null,"Akmens anglis",null,"Akmens anglis",96.1,null,2,{"$f":"IF(AI65=$N$13,AL65,\"\")","v":""},{"$f":"IFERROR(SMALL(AM$64:AM$70,AL65),\"\")","v":""}]
[null,null,null,null,null,null,null,null,null,null,null,null,null,null,null,null,null,null,null,null,null,"Elektra",null,"Elektra",0,null,3,"","",null,null,null,"Elektra",null,"Elektra",0,null,3,3,""]
[null,null,null,null,null,null,null,null,null,null,null,null,null,null,null,null,null,null,null,null,null,"Biodujos",null,"Biodujos",0,null,4,"","",null,null,null,"Biodujos",null,"Biodujos",0,null,4,"",""]
[null,null,null,null,null,null,null,null,null,null,null,null,null,null,null,null,null,null,null,null,null,"Suskystintos naftos dujos",null,"Suskystintos naftos dujos",66.78,null,5,"","",null,null,null,"Suskystintos naftos dujos",null,"Suskystintos naftos dujos",66.78,null,5,"",""]
[null,null,null,null,null,null,null,null,null,null,null,null,null,null,null,null,null,null,null,null,null,"Vandenilis",null,"Vandenilis",0,null,6,"","",null,null,null,"Vandenilis",null,"Vandenilis",0,null,6,"",""]
[null,null,null,null,null,null,null,null,null,null,null,null,null,null,null,null,null,null,null,null,null,"Panaudotos, netinkamos naudoti padangos",null,"Panaudotos, netinkamos naudoti padangos",66.400000000000006,null,7,"","",null,null,null,"Panaudotos, netinkamos naudoti padangos",null,"Panaudotos, netinkamos naudoti padangos",66.400000000000006,null,7,"",""]
[]
[null,null,null,null,null,null,null,null,null,null,null,null,null,null,null,null,null,null,null,null,null,null,null,"Duomenys \"helper\" stulpeliams",null,"Helper stulpeliai",null,null,null,null,null,null,null,null,"Duomenys \"helper\" stulpeliams",null,"Helper stulpeliai"]
[null,null,null,null,null,null,null,null,null,null,null,null,null,null,null,null,null,null,null,null,null,null,null,"Kuro rūšis","ŠESD emisija",null,"H1","H2","H3",null,null,null,null,null,"Kuro rūšis","ŠESD emisija",null,"H1","H2","H3"]
[null,null,null,null,null,null,null,null,null,null,null,null,null,null,null,null,null,null,null,null,null,"Gamtinės dujos",null,"Gamtinės dujos",55.59,null,1,{"$f":"IF(X74=$O$9,AA74,\"\")","v":1},{"$f":"IFERROR(SMALL(AB$74:AB$80,AA74),\"\")","v":1},null,null,null,"Gamtinės dujos",null,"Gamtinės dujos",55.59,null,1,{"$f":"IF(AI74=$O$13,AL74,\"\")","v":""},{"$f":"IFERROR(SMALL(AM$74:AM$80,AL74),\"\")","v":3}]
[null,null,null,null,null,null,null,null,null,null,null,null,null,null,null,null,null,null,null,null,null,"Akmens anglis",null,"Akmens anglis",96.1,null,2,{"$f":"IF(X75=$O$9,AA75,\"\")","v":""},{"$f":"IFERROR(SMALL(AB$74:AB$80,AA75),\"\")","v":""},null,null,null,"Akmens anglis",null,"Akmens anglis",96.1,null,2,{"$f":"IF(AI75=$O$13,AL75,\"\")","v":""},{"$f":"IFERROR(SMALL(AM$74:AM$80,AL75),\"\")","v":""}]
[null,null,null,null,null,null,null,null,null,null,null,null,null,null,null,null,null,null,null,null,null,"Elektra",null,"Elektra",0,null,3,"","",null,null,null,"Elektra",null,"Elektra",0,null,3,3,""]
[null,null,null,null,null,null,null,null,null,null,null,null,null,null,null,null,null,null,null,null,null,"Biodujos",null,"Biodujos",0,null,4,"","",null,null,null,"Biodujos",null,"Biodujos",0,null,4,"",""]
[null,null,null,null,null,null,null,null,null,null,null,null,null,null,null,null,null,null,null,null,null,"Suskystintos naftos dujos",null,"Suskystintos naftos dujos",66.78,null,5,"","",null,null,null,"Suskystintos naftos dujos",null,"Suskystintos naftos dujos",66.78,null,5,"",""]
[null,null,null,null,null,null,null,null,null,null,null,null,null,null,null,null,null,null,null,null,null,"Vandenilis",null,"Vandenilis",0,null,6,"","",null,null,null,"Vandenilis",null,"Vandenilis",0,null,6,"",""]
[null,null,null,null,null,null,null,null,null,null,null,null,null,null,null,null,null,null,null,null,null,"Panaudotos, netinkamos naudoti padangos",null,"Panaudotos, netinkamos naudoti padangos",66.400000000000006,null,7,"","",null,null,null,"Panaudotos, netinkamos naudoti padangos",null,"Panaudotos, netinkamos naudoti padangos",66.400000000000006,null,7,"",""]

{"sheet":"ATNAUJINIMAS","index":3,"n_rows":11,"n_cols":8,"rows_kept":11,"cut":false,"hidden":false,"merged":[[0,15,4,19],[1,5,3,7]]}
[]
[]
[]
[]
[null,null,null,null,null,"Atnaujinimo data","Administratorius","Pastabos"]
[null,null,null,null,null,"2024.03.01","AAA Aplinkos būklės analitikos centras","Pirmos versijos viešinimas"]
[null,null,null,null,null,"2025.12.19","AAA Aplinkos būklės analitikos centras","Versijos viešinimas"]
[]
[]
[]
[null,null,null,null,null,"* - nuolat naujinama"]